Cogmind - Beta 16 @@@ ROGUE MODE // 2025.11.10 @ 14:48:53 Player: Maxfecteau Result: Destroyed by G-47 Trooper with Particle Gun Performance ------------- Evolutions (0) 0 Regions Visited (4) 800 Robots Destroyed (0) 0 Value Destroyed (0) 0 Prototype IDs (23) 460 Alien Tech Used (0) 0 Bonus (307) 307 TOTAL SCORE: 1567 Bonus ------- Follower Combat Kills 7 Aligned with FarCom 300 Cogmind --------- Core Integrity 0/250 Matter 299/300 Energy 98/100 System Corruption 2% Temperature Cool (9) Movement Core (50) Location -9/Mines Parts ------- > --- POWER (1) -------- (None) > --- PROPULSION (2) --- (None) > --- UTILITY (2) ------ Improved Light Armor Plating > --- WEAPON (2) ------- (None) > --- INVENTORY (5) ---- Flying Fortress v7 Peak State ------------ > --- POWER ------------ (None) > --- PROPULSION ------- (None) > --- UTILITY ---------- Improved Light Armor Plating > --- WEAPON ----------- (None) > --- INVENTORY -------- Flying Fortress v7 Improved Light Armor Plating [Rating: 6] Favorites ----------- Power None Propulsion None Utility Improved Light Armor Plating Protection Improved Light Armor Plating Weapon None Build | -11 -10 -10 -10 -9 ------- Run | Yrd Mat Min Exi Min Slots Evolved . | . . . . . Power . | . . . . . Propulsion . | . . . . . Utility . | . . . . . Weapon . | . . . . . Parts Attached 2 | . . 1 . 1 Power . | . . . . . Engine . | . . . . . Core . | . . . . . Reactor . | . . . . . Propulsion . | . . . . . Treads . | . . . . . Leg . | . . . . . Wheel . | . . . . . Hover . | . . . . . Flight . | . . . . . Utility 2 | . . 1 . 1 Device . | . . . . . Storage . | . . . . . Processor . | . . . . . Hackware . | . . . . . Protection 2 | . . 1 . 1 Artifact . | . . . . . Weapon . | . . . . . Energy Gun . | . . . . . Energy Cannon . | . . . . . Ballistic Gun . | . . . . . Ballistic Cannon . | . . . . . Launcher . | . . . . . Special Weapon . | . . . . . Impact Weapon . | . . . . . Slashing Weapon . | . . . . . Piercing Weapon . | . . . . . Special Melee Weapon . | . . . . . Unidentified Prototypes . | . . . . . Parts Lost . | . . . . . Power . | . . . . . Propulsion . | . . . . . Utility . | . . . . . Weapon . | . . . . . Highest Loss Streak . | . . . . . To Critical Strikes . | . . . . . Average Backups 2 | . 1 2 3 1 Power . | . 1 1 . . Propulsion . | . . . . 1 Utility . | . . . 1 . Weapon . | . . . . . Tool/Special . | . . . . . Unused Backups 6 | . . 1 4 1 Power 1 | . . . 1 . Propulsion 1 | . . . . 1 Utility 3 | . . 1 2 . Weapon 1 | . . . 1 . Tool/Special . | . . . . . Average Slot Usage (%) 7 | . . 1 14 14 Protection 7 | . . 1 14 14 Peak Build Rating 6 | . . 4 6 6 Average Rating 2 | . . . 5 6 On Entrance 2 | . . . 4 6 Avg Prop Armor Cover (%) . | . . . . . Naked Turns 557 | . 23 534 . . Heaviest Build 3 | . . 3 3 3 Greatest Support 3 | 3 3 3 3 3 Greatest Overweight (x) . | . . . . . Average Overweight (x) . | . . . . . Largest Inventory Capacity 5 | 5 5 5 5 5 Average Capacity 5 | 5 5 5 5 5 Most Carried 5 | 1 1 5 5 5 Average Carried 3 | . 1 2 4 4 Final Capacity 5 | 5 5 5 5 5 Final Carried 5 | 1 1 5 5 4 Class Distribution -------------------- 100% | Mutant Dominant Class ---------------- Mutant | -10/Materials Mutant | -10/Mines Mutant | -10/Exiles Mutant | -9/Mines Resources | -11 -10 -10 -10 -9 ----------- Run | Yrd Mat Min Exi Min Matter Collected 219 | 200 . . 10 9 Remotely . | . . . . . Salvage Created . | . . . . . Parts . | . . . . . Haulers Intercepted . | . . . . . Recyclers Shooed . | . . . . . Parts Field Recycled . | . . . . . Retrieved Matter . | . . . . . Parts Self-Destructed . | . . . . . Prevented . | . . . . . Parts Restored . | . . . . . Kills | -11 -10 -10 -10 -9 ------- Run | Yrd Mat Min Exi Min Combat Hostiles Destroyed . | . . . . . Classes Destroyed . | . . . . . Best Kill Streak . | . . . . . Combat Bots Only . | . . . . . Max Kills in Single Turn . | . . . . . Gunslinging . | . . . . . Exploded . | . . . . . Melee . | . . . . . Uniques/NPCs Destroyed . | . . . . . Combat | -11 -10 -10 -10 -9 -------- Run | Yrd Mat Min Exi Min Hostile Shots Fired 43 | . . 7 . 36 Missed 15 | . . 1 . 14 Hits 28 | . . 6 . 22 Projectile 28 | . . 6 . 22 AOE 3 | . . 3 . . Damage Taken 386 | . . 163 . 223 Core 260 | . . 163 . 97 Absorbed by Shields . | . . . . . Core Remaining (%) 100 | 100 . . . . Volleys Fired . | . . . . . Largest . | . . . . . Hottest . | . . . . . Shots Fired . | . . . . . Gun . | . . . . . Cannon . | . . . . . Launcher . | . . . . . Special . | . . . . . Kinetic . | . . . . . Thermal . | . . . . . Explosive . | . . . . . Electromagnetic . | . . . . . Robot Hit Streak . | . . . . . Robot Miss Streak . | . . . . . Penetration Max . | . . . . . Secondary Targets . | . . . . . Shots Hit Robots . | . . . . . Core Hits . | . . . . . Critical Kills . | . . . . . Critical Parts Destroyed . | . . . . . Critical Strikes . | . . . . . Melee Attacks . | . . . . . Impact . | . . . . . Slashing . | . . . . . Piercing . | . . . . . Sneak Attacks . | . . . . . Combat Hostiles . | . . . . . Follow-up Attacks . | . . . . . Damage Inflicted 36 | . . . . 36 Guns . | . . . . . Cannons . | . . . . . Explosions . | . . . . . Melee . | . . . . . Ramming 36 | . . . . 36 Kinetic . | . . . . . Thermal . | . . . . . Explosive . | . . . . . Electromagnetic . | . . . . . Impact . | . . . . . Slashing . | . . . . . Piercing . | . . . . . Highest Corruption 2 | . . . . 2 Average Corruption 2 | . . . . 2 Corruption Purged . | . . . . . Corruption Blocked . | . . . . . Effects 1 | . . . . 1 Parts Rejected 1 | . . . . 1 Overload Shots . | . . . . . Overflow Damage . | . . . . . Projectiles . | . . . . . Explosions . | . . . . . Melee . | . . . . . Knockbacks . | . . . . . Impact . | . . . . . Kinetic . | . . . . . Secondary . | . . . . . Self-Inflicted Damage 15 | . . . . 15 Shots . | . . . . . Rammed 9 | . . . . 9 Targets Rammed 9 | . . . . 9 Kicked . | . . . . . Crushed . | . . . . . Highest Temperature . | . . . . . Average Temperature . | . . . . . Received Heat Transfer 51 | . . 6 . 45 Siege Activations . | . . . . . Martial Activations . | . . . . . Shielding Activations . | . . . . . Robots Disrupted . | . . . . . Combat Hostiles . | . . . . . Robots Corrupted . | . . . . . Combat Hostiles . | . . . . . Parts Fried . | . . . . . Impact Corruptions . | . . . . . Robots Melted . | . . . . . Combat Hostiles . | . . . . . Parts Melted . | . . . . . Heat Transferred . | . . . . . Parts Sabotaged . | . . . . . Parts Stolen . | . . . . . Parts Stripped . | . . . . . Power Chain Reactions . | . . . . . Alert | -11 -10 -10 -10 -9 ------- Run | Yrd Mat Min Exi Min Maximum Alert Level . | . . . . . Low Security (%) 100 | 100 100 100 . 100 Level 1 . | . . . . . Level 2 . | . . . . . Level 3 . | . . . . . Level 4 . | . . . . . Level 5 . | . . . . . High Security . | . . . . . Max Security . | . . . . . Peak Influence 76 | . . . . 76 Initial . | . . . . . Average 3 | . . . . 9 Influence Increases 126 | . . . . 126 Destroy 0b10 Robot/C 20 | . . . . 20 Allied During Kill 1 | . . . . 1 Lose Combat Pursuer 105 | . . . . 105 Influence Decreases 60 | . . . . 60 Time Decay 40 | . . . . 40 Lost Ally 20 | . . . . 20 Squads Dispatched . | . . . . . Investigation . | . . . . . Extermination . | . . . . . Reinforcement . | . . . . . Assault . | . . . . . Garrison . | . . . . . Intercept . | . . . . . Searches Triggered . | . . . . . Construction Impeded . | . . . . . Haulers Reinforced . | . . . . . Active Scanning Responses . | . . . . . Cargo Convoy Interrupts . | . . . . . Stealth | -11 -10 -10 -10 -9 --------- Run | Yrd Mat Min Exi Min Distress Signals 1 | . . . . 1 Communications Jammed . | . . . . . Distress Signals . | . . . . . Times Spotted 25 | . 2 13 . 10 Peak Tracking Total 21 | . 2 21 . 4 Tactical Retreats 5 | . . 2 . 3 Traps | -11 -10 -10 -10 -9 ------- Run | Yrd Mat Min Exi Min Traps Triggered . | . . . . . Indirectly . | . . . . . Trap Hack Attempts . | . . . . . Triggered . | . . . . . Disarmed . | . . . . . Reprogrammed . | . . . . . Reused . | . . . . . Traps Extracted . | . . . . . Installed . | . . . . . Triggered . | . . . . . Machines | -11 -10 -10 -10 -9 ---------- Run | Yrd Mat Min Exi Min Machines Disabled . | . . . . . Max in Single Turn . | . . . . . Machines Repaired . | . . . . . Machines Dismantled . | . . . . . Machines Sabotaged . | . . . . . Overloaded Fab Kills . | . . . . . Hacking | -11 -10 -10 -10 -9 --------- Run | Yrd Mat Min Exi Min Machines Accessed 3 | . 1 . 2 . Terminals 1 | . 1 . . . Fabricators . | . . . . . Repair Stations . | . . . . . Recycling Units . | . . . . . Scanalyzers . | . . . . . Garrison Access . | . . . . . Total Hacks 27 | . 3 . 24 . Successful 25 | . 1 . 24 . Failed 2 | . 2 . . . Catastrophic . | . . . . . Database Lockouts . | . . . . . Manual 1 | . . . 1 . Terminals 3 | . 3 . . . Fabricators . | . . . . . Repair Stations . | . . . . . Recycling Units . | . . . . . Scanalyzers . | . . . . . Garrison Access . | . . . . . Terminal Hacks 25 | . 1 . 24 . Record 23 | . . . 23 . Branch Access Points 1 | . 1 . . . Proto ID Catalog 1 | . . . 1 . Fabricator Hacks . | . . . . . Repair Station Hacks . | . . . . . Recycling Unit Hacks . | . . . . . Scanalyzer . | . . . . . Garrison Access Hacks . | . . . . . Unauthorized Hacks . | . . . . . Terminals . | . . . . . Fabricators . | . . . . . Repair Stations . | . . . . . Recycling Units . | . . . . . Scanalyzers . | . . . . . Garrison Access . | . . . . . Data Cores Recovered . | . . . . . Used . | . . . . . Hacking Detections 1 | . 1 . . . Full Trace Events . | . . . . . Feedback Events . | . . . . . Feedback Blocked . | . . . . . Robot Schematics Acquired . | . . . . . Robots Built . | . . . . . Authchips . | . . . . . Time . | . . . . . Total Robot Build Rating . | . . . . . Part Schematics Acquired . | . . . . . Parts Built . | . . . . . Authchips . | . . . . . Time . | . . . . . Total Part Build Rating . | . . . . . Part Studies Acquired . | . . . . . Parts Repaired . | . . . . . Time . | . . . . . Parts Recycled . | . . . . . Recycled Matter . | . . . . . Retrieved Matter . | . . . . . Retrieved Components . | . . . . . Parts Scanalyzed . | . . . . . Part Schematics Acquired . | . . . . . Parts Damaged . | . . . . . Bothacking | -11 -10 -10 -10 -9 ------------ Run | Yrd Mat Min Exi Min Used RIF Installer . | . . . . . Robots Hacked . | . . . . . Non-combat . | . . . . . Combat . | . . . . . Robot Hacks Applied . | . . . . . Relay Couplers Released . | . . . . . Fabnet Peak Effective % . | . . . . . Robots Rewired . | . . . . . Allies Hacked . | . . . . . Hacks Repelled . | . . . . . Allies | -11 -10 -10 -10 -9 -------- Run | Yrd Mat Min Exi Min Total Allies 3 | . . 3 . . Largest Group 3 | . . 3 1 1 Highest-Rated Group 40 | . . 40 16 16 Highest-Rated Ally 16 | . . 16 16 16 Total Orders . | . . . . . Ally Attacks 23 | . . 21 . 2 Total Damage 163 | . . 149 . 14 Kills 4 | . . 3 . 1 Allies Corrupted . | . . . . . Allies Melted . | . . . . . Intel | -11 -10 -10 -10 -9 ------- Run | Yrd Mat Min Exi Min Active Infowar (turns) . | . . . . . Robot Analysis Total . | . . . . . Derelict Logs Recovered 4 | . . 2 . 2 Drone Launches . | . . . . . Drone Recoveries . | . . . . . Exploration | -11 -10 -10 -10 -9 ------------- Run | Yrd Mat Min Exi Min Turns Passed 1169 | 19 23 580 159 388 Spaces Moved 1810 | 35 45 939 289 502 Core 1810 | 35 45 939 289 502 Treads . | . . . . . Legs . | . . . . . Wheels . | . . . . . Hover . | . . . . . Flight . | . . . . . Fastest Speed 50 | 50 50 50 50 50 Average Speed 50 | 50 50 50 50 50 Slowest Speed 50 | 50 50 50 50 50 Overloaded Moves . | . . . . . Propulsion Burnouts . | . . . . . Robots Hopped . | . . . . . Potential Cave-ins . | . . . . . Cave-ins Triggered . | . . . . . Exploration Rate (%) 51 | 3 18 99 68 67 Regions Visited 4 Branch Regions 3 Pre-discovered Areas 2 | . . . 1 1 Known Exits Taken 2 | . 1 . 1 . Unknown Exits Taken 2 | 1 . 1 . . Scrap Searched 2 | . . 1 . 1 Spaces Dug . | . . . . . Terrain Destroyed . | . . . . . Melee . | . . . . . Projectile . | . . . . . AOE . | . . . . . Terrain Rammed . | . . . . . Walls Destroyed . | . . . . . Machines Disabled . | . . . . . Actions | -11 -10 -10 -10 -9 --------- Run | Yrd Mat Min Exi Min Total 2070 | 35 44 1048 304 639 Wait 241 | . . 103 11 127 Move 1806 | 34 44 938 288 502 Hop . | . . . . . Pick Up 7 | 1 . 5 1 . Fast Attach 1 | . . 1 . . Attach 1 | . . . . 1 Detach . | . . . . . Swap . | . . . . . Drop 5 | . . 1 4 . Fire . | . . . . . Melee . | . . . . . Ram 9 | . . . . 9 Kick . | . . . . . Crush . | . . . . . Escape Stasis . | . . . . . Rewire . | . . . . . Trap . | . . . . . Miscellaneous . | . . . . . Route ------- -11/Scrapyard -10/Materials -10/Mines (discovered 4 exits: [*Mat x2] / *Exi / [*Sub]) -10/Exiles (discovered 2 exits: *Min x2) -9/Mines History --------- Turn | Location | Event 8 | -11/Scrapyard | Discovered new exit (range 14) 20 | -11/Scrapyard | Entered Materials 25 | -10/Materials | Identified exit to Mines 43 | -10/Materials | Entered Mines 79 | -10/Mines | Discovered new exit (range 11) 142 | -10/Mines | Discovered new exit (range 8) 180 | -10/Mines | YI-UF0 nonchalantly dropped a Grenade Launcher on the ground 240 | -10/Mines | Assembled infested the area 252 | -10/Mines | Core integrity fell below 50% 306 | -10/Mines | Build established: Mutant 364 | -10/Mines | Assisted by bots powering up and referring to "LRC-V3" 457 | -10/Mines | Discovered new exit (range 3) 609 | -10/Mines | Deemed a non-threat by the Exiles lab entrance 610 | -10/Mines | Discovered new exit (range 5) 623 | -10/Mines | Entered Exiles 623 | -10/Exiles | Accompanied by 1 ally 624 | -10/Exiles | Identified exit to Mines 638 | -10/Exiles | Met 8R-AWN 647 | -10/Exiles | Met EX-HEX 662 | -10/Exiles | Met EX-BIN 668 | -10/Exiles | Aligned with FarCom system 668 | -10/Exiles | Given EX-Vault access code 684 | -10/Exiles | Opened EX-Vault 691 | -10/Exiles | Found Flying Fortress v7 702 | -10/Exiles | Warned to stay clear of 0b10 Research branches 719 | -10/Exiles | Met EX-DEC 735 | -10/Exiles | Learned location of Zion (-7) 782 | -10/Exiles | Left Exiles lab with Flying Fortress v7 782 | -10/Exiles | Entered Mines 782 | -9/Mines | Accompanied by 1 ally 800 | -9/Mines | Received a Rocket Launcher from a helpful Derelict 817 | -9/Mines | Learned Materials terminal intel 836 | -9/Mines | Found a hidden stash of uninstalled traps 1109 | -9/Mines | Core integrity fell below 20% 1170 | -9/Mines | Destroyed by G-47 Trooper with Particle Gun Last Messages --------------- Data stored: Materials terminal intel. K-01 Serf collects debris. A stash of uninstalled traps is collected here! K-01 Serf collects debris. Slammed into K-01 Serf. S-10 Pest destroyed. Acquired derelict log, extracted data. World map confirmed: -7/Zion. Slammed into S-10 Pest. Destabilizing: System corrupted (+2). Slammed into S-10 Pest. R-06 Scavenger collects Aluminum Leg. Slammed into K-01 Serf. K-01 Serf sends out distress signal. R-06 Scavenger collects Lgt. Nuclear Core. Slammed into K-01 Serf. Slammed into T-07 Excavator. System corrupted: Imp. Light Armor Plating rejected. Acquired 4 matter. Acquired 5 matter. Map ----- +----------------------------------------------------+ | | | | | | | | | | | ??????????????????????????????????????????????? | | ??????????????????????????????????????????????? | | ??????????????????????????????????????????????? | | ?????????????####?######??????????????????????? | | ?????????##### ### ##?????????????????????? | | ?????????# #?????????????????????? | | ####?????# ## #?????????????????????? | | ##????# ### ##????????????????????? | | ###### #?## ##???????????????????? | | #??## ##??????????????????? | | ####???# #??????????????????? | | ####### ######## #??????????????????? | | #?????# % ##??????????????????? | | ??????#%######### #######??????????????? | | ??????#%#???????## #### ####???????????? | | ??????#%#????????#### #?# ##??????????? | | ??????# #???????????## #?# ##???####??? | | ??????# #????????????# #?# ##### ##?? | | ?????##%##??######???# ### #?? | | ????## #### ##??# ## ##?? | | #??## ## ##?# @ g #####??? | | #### ## g ##??????? | | ### ##???????? | | ##?## ##????????? | | ## ###???## ##?????????? | | ?### ### #####??????####??????????? | | ???#####?## #????????????????????????? | | ??????????## ## #???????????????????????? | | ???????????######## #???????????????????????? | | ??????????????????# #???????????????????????? | | ??????????????????# #???????????????????????? | | ??????????????????# #??????????????????????? | | ???????????????????# ??????????????????????? | | ????????????????????# ?????????????????????? | | ?????????????????????# ?????????????????????? | | ??????????????????????????????????????????????? | | ??????????????????????????????????????????????? | | ??????????????????????????????????????????????? | | ??????????????????????????????????????????????? | | ??????????????????????????????????????????????? | | ??????????????????????????????????????????????? | | ??????????????????????????????????????????????? | | ??????????????????????????????????????????????? | | ??????????????????????????????????????????????? | | ??????????????????????????????????????????????? | +----------------------------------------------------+ Best States ------------- Heat Dissipation 25 Energy Generation 5 Energy Capacity 100 Matter Stores 300 Matter Capacity 300 Sight Range 16 Terrain Scan Density 10 Armor Coverage 150 Evasion (%) 50 Item Schematics ----------------- None Robot Schematics ------------------ None Fabricated ------------ Nothing Repaired ---------- Nothing Studied --------- None Alien Tech Used ----------------- None Achievements -------------- None Challenges ------------ None Game ------ Seed SwordPlatingMegashotty Manual? 0 Play Time 00:23:21 Cumulative 22.3 hours Start 2025.11.10 @ 14:25:04 End 2025.11.10 @ 14:48:53 Sessions 1 Manual Loads 0 Difficulty Rogue Special Mode None Game No. 21 Rogue 21 Adventurer 0 Explorer 0 Win Type - Total 1 Types 1/0/0/0/0/0/0/0/0/0 Lore% 15 Gallery% 21 Achievement% 23 Wizard Run 0 Options --------- Layout 0 ASCII 0 Keyboard 0 Movement Arrows Keybinds 0 Fullscreen 2 Font 18/SmallcapsGlow Map View 76x50 Zoom Use 0% Tactical HUD 0 Map Filters NONE Filters NONE Steam 1 RUN: 79e60b3c-e11d-42f7-8e72-d2b63b55f3dc